lending/lending_fUSD_20250808
["ID","MTS","AMOUNT","RATE_DAILY","PERIOD"]
[377999041,1754659845277,-524.02547946,0.00018999,2]
[377999042,1754659845288,-400.0,0.00018999,2]
[377999043,1754659845298,-400.0,0.00018999,2]
[377999044,1754659845309,-408.35,0.00018999,2]
[377999045,1754659845319,-533.18,0.00018999,2]
[377999046,1754659845330,-400.0,0.00018999,2]
[377999047,1754659845339,-469.15967668,0.00018999,2]
[377999048,1754659845349,-400.0,0.00018999,2]
[377999049,1754659845359,-400.0,0.00018999,2]
[377999050,1754659845368,-1293.74,0.00018999,2]
[377999051,1754659845378,-540.45,0.00018999,2]
[377999052,1754659845387,-211.505752,0.00018999,2]
[377999053,1754659845397,-400.0,0.00018999,2]
[377999054,1754659845407,-673.3,0.00018999,2]
[377999055,1754659845417,-9765.06,0.00018999,2]
[377999056,1754659845430,-465.97,0.00018999,2]
[377999057,1754659845451,-864.24,0.00018999,2]
[377999058,1754659845465,-400.0,0.00018999,2]
[377999059,1754659845475,-400.0,0.00018999,2]
[377999060,1754659845486,-681.91,0.00018999,2]
[377999061,1754659845500,-401.74255074,0.00018999,2]
[377999062,1754659845510,-400.0,0.00018999,2]
[377999063,1754659845519,-400.0,0.00018999,2]
[377999064,1754659845529,-897.05,0.00018999,2]
[377999065,1754659845540,-543.17,0.00018999,2]
[377999066,1754659845549,-518.6,0.00018999,2]
[377999067,1754659845559,-641.02,0.00018999,2]
[377999068,1754659845569,-400.0,0.00018999,2]
[377999069,1754659845579,-400.0,0.00018999,2]
[377999070,1754659845589,-443.22,0.00018999,2]
[377999071,1754659845599,-400.0,0.00018999,2]
[377999072,1754659845609,-850.13,0.00018999,2]
[377999073,1754659845619,-285.30289711,0.00018999,2]
[377999074,1754659845629,-400.0,0.00018999,2]
[377999075,1754659845638,-400.0,0.00018999,2]
[377999076,1754659845649,-400.0,0.00018999,2]
[377999077,1754659845659,-400.0,0.00018999,2]
[377999078,1754659845668,-400.0,0.00018999,2]
[377999079,1754659845679,-400.0,0.00018999,2]
[377999080,1754659845690,-400.0,0.00018999,2]
[377999081,1754659845700,-979.25,0.00018999,2]
[377999082,1754659845710,-400.0,0.00018999,2]
[377999083,1754659845720,-632.93,0.00018999,2]
[377999084,1754659845730,-1044.62,0.00018999,2]
[377999085,1754659845740,-400.0,0.00018999,2]
[377999086,1754659845750,-400.0,0.00018999,2]
[377999087,1754659845760,-457.39,0.00018999,2]
[377999088,1754659845769,-400.0,0.00018999,2]
[377999089,1754659845779,-400.0,0.00018999,2]
[377999090,1754659845789,-468.64,0.00018999,2]
[377999091,1754659845799,-400.0,0.00018999,2]
[377999092,1754659845808,-400.0,0.00018999,2]
[377999093,1754659845818,-568.25,0.00018999,2]
[377999094,1754659845828,-400.0,0.00018999,2]
[377999095,1754659845838,-1483.76,0.00018999,2]
[377999096,1754659845848,-819.86,0.00018999,2]
[377999097,1754659845858,-1018.0,0.00018999,2]
[377999098,1754659845868,-400.0,0.00018999,2]
[377999099,1754659845880,-400.0,0.00018999,2]
[377999100,1754659845890,-489.19,0.00018999,2]
[377999101,1754659845900,-706.35,0.00018999,2]
[377999102,1754659845911,-1064.29,0.00018999,2]
[377999103,1754659845921,-400.0,0.00018999,2]
[377999104,1754659845931,-400.0,0.00018999,2]
[377999105,1754659845945,-476.6,0.00018999,2]
[377999106,1754659845958,-400.0,0.00018999,2]
[377999108,1754659845968,-400.0,0.00018999,2]
[377999109,1754659845978,-17305.1747076,0.00018999,2]
[377999110,1754659845988,-1000.0,0.00018999,2]
[377999111,1754659845997,-400.0,0.00018999,2]
[377999112,1754659846007,-400.0,0.00018999,2]
[377999113,1754659846016,-815.42,0.00018999,2]
[377999114,1754659846026,-400.0,0.00018999,2]
[377999115,1754659846036,-400.0,0.00018999,2]
[377999116,1754659846046,-400.0,0.00018999,2]
[377999117,1754659846056,-400.0,0.00018999,2]
[377999118,1754659846066,-530.72,0.00018999,2]
[377999119,1754659846075,-2422.4236786,0.00018999,2]
[377999121,1754659846085,-400.0,0.00018999,2]
[377999122,1754659846095,-400.0,0.00018999,2]
[377999123,1754659846105,-400.0,0.00018999,2]
[377999124,1754659846115,-1996.75,0.00018999,2]
[377999125,1754659846125,-400.0,0.00018999,2]
[377999126,1754659846135,-627.86,0.00018999,2]
[377999127,1754659846146,-400.0,0.00018999,2]
[377999128,1754659846156,-400.0,0.00018999,2]
[377999129,1754659846166,-1250.02,0.00018999,2]
[377999130,1754659846176,-400.0,0.00018999,2]
[377999131,1754659846187,-400.0,0.00018999,2]
[377999132,1754659846197,-891.44,0.00018999,2]
[377999133,1754659846207,-400.0,0.00018999,2]
[377999134,1754659846216,-400.0,0.00018999,2]
[377999135,1754659846226,-480.27,0.00018999,2]
[377999136,1754659846236,-901.15,0.00018999,2]
[377999137,1754659846247,-1578.34,0.00018999,2]
[377999138,1754659846256,-8069.95128417,0.00019,2]
[377999139,1754659846266,-320522.17775259,0.00019,2]
[377999140,1754659846277,-292.89019098,0.00019,2]
[377999141,1754659846287,-2000.0,0.00019,2]
[377999142,1754659846298,-49526.93208684,0.00019,2]
[377999143,1754659846308,-2151836.82230826,0.00019,2]
[377999144,1754659846318,-292.43020029,0.00019,2]
[377999145,1754659846327,-1839.38,0.00019,2]
[377999146,1754659846337,-1025370.59193712,0.00019,2]
[377999159,1754659847649,-150.0,0.0001837,2]
[377999160,1754659847659,-1071.53,0.00018758,2]
[377999161,1754659847668,-442991.23061827,0.00019,2]
[377999162,1754659847698,-2031.04555728,0.00019,2]
[377999163,1754659919058,-277.59,0.00018108,2]
[377999164,1754659919080,-200.0,0.00018158,2]
[377999165,1754659984920,170.83,0.00018053,2]
[377999169,1754660066520,1000.0,0.00018037,2]
[377999170,1754660103855,186.0,0.000183,2]
[377999171,1754660158324,176.72,0.00018025,2]
[377999172,1754660235128,542.68,0.00015068,2]
[377999173,1754660235203,542.68,0.00016663,2]
[377999174,1754660235550,542.68,0.00018258,2]
[377999175,1754660326962,233.0,0.0001811,2]
[377999176,1754660327301,233.0,0.0001792,2]
[377999177,1754660327608,233.0,0.0001772,2]
[377999178,1754660328069,233.0,0.0001752,2]
[377999179,1754660328398,233.0,0.0001732,2]
[377999180,1754660328801,233.0,0.0001712,2]
[377999181,1754660329142,233.0,0.0001692,2]
[377999182,1754660329474,233.0,0.0001672,2]
[377999183,1754660329837,233.0,0.0001652,2]
[377999184,1754660367398,150.0,0.00015,2]
[377999185,1754660367781,150.0,0.0001618,2]
[377999186,1754660368126,150.0,0.0001737,2]
[377999189,1754660403740,187.0,0.000183,2]
[377999190,1754660474069,157.14,0.00017832,2]
[377999191,1754660561582,304.33,0.00017785,2]
[377999195,1754660630376,247.59,0.00013699,2]
[377999196,1754660715751,150.0,0.00017112,2]
[377999197,1754660715799,150.0,0.00017588,2]
[377999198,1754660715886,150.0,0.00018063,2]
[377999199,1754660716119,198.40795141,0.00017112,2]
[377999200,1754660717040,150.0,0.00017112,2]
[377999201,1754660717104,150.0,0.00017746,2]
[377999202,1754660719889,150.0,0.00017112,2]
[377999203,1754660721316,150.0,0.00017112,2]
[377999204,1754660721381,150.0,0.00017588,2]
[377999205,1754660721454,150.0,0.00018063,2]
[377999206,1754660723051,250.0,0.00017112,2]
[377999207,1754660725595,150.0,0.00017112,2]
[377999208,1754660725642,150.0,0.00018063,2]
[377999209,1754660735098,150.0,0.00017112,2]
[377999210,1754660737915,150.0,0.00017112,2]
[377999213,1754660823137,40519.35204859,0.00017776,2]
[377999214,1754660823159,50000.0,0.00017776,2]
[377999215,1754660823186,6865.63767167,0.00017776,2]
[377999216,1754660823208,15000.0,0.00017776,2]
[377999217,1754660823232,15000.0,0.00017776,2]
[377999218,1754660823255,15000.0,0.00017776,2]
[377999219,1754660823297,15000.0,0.00017776,2]
[377999220,1754660823323,7615.01027974,0.00017776,2]
[377999221,1754660851832,200.0,0.00017752,2]
[377999222,1754660896550,150.0,0.00014,2]
[377999223,1754660897117,150.0,0.0001518,2]
[377999224,1754660897511,150.0,0.0001637,2]
[377999225,1754660897898,150.0,0.0001755,2]
[377999232,1754661032331,-342.79160002,0.00018116,2]
[377999233,1754661032446,-181.20839998,0.00018116,2]
[377999234,1754661032456,-233.0,0.0001831,2]
[377999235,1754661032465,-168.0,0.00018378,2]
[377999236,1754661032475,-150.0,0.0001838,2]
[377999237,1754661032484,-94.25782,0.0001851,2]
[377999238,1754661032495,-138.74218,0.0001851,2]
[377999239,1754661032505,-150.0,0.00018538,2]
[377999240,1754661032514,-150.0,0.00018538,2]
[377999241,1754661032524,-152.65,0.000186,2]
[377999242,1754661032533,-200.0,0.000186,6]
[377999243,1754661032542,-149.22295571,0.00018647,2]
[377999248,1754661032736,-150.77704429,0.00018647,2]
[377999249,1754661032747,-318.70224864,0.00018647,2]
[377999250,1754661032767,-881.29775136,0.00018647,2]
[377999251,1754661032777,-300.0,0.00018647,2]
[377999252,1754661032787,-267.46074303,0.00018648,2]
[377999254,1754661032796,-5199.43684444,0.00018648,2]
[377999256,1754661032806,-530.25726322,0.00018658,2]
[377999258,1754661032816,-151.13555537,0.00018658,2]
[377999260,1754661032825,-4187.9158,0.00018658,2]
[377999262,1754661032835,-25884.1783,0.00018659,2]
[377999264,1754661032844,-1000.0,0.00018659,2]
[377999267,1754661032854,-3019.41352853,0.00018693,2]
[377999269,1754661032864,-500.0,0.000187,6]
[377999271,1754661032874,-5391.81600769,0.00018703,2]
[377999273,1754661032883,-233.0,0.0001871,2]
[377999275,1754661032893,-150.0,0.0001873,2]
[377999277,1754661032903,-1000.0,0.00018733,2]
[377999279,1754661032912,-150.0,0.00018735,2]
[377999281,1754661032922,-150.0,0.00018738,2]
[377999283,1754661032932,-2764.0242,0.0001874,2]
[377999285,1754661032942,-500.0,0.00018746,2]
[377999287,1754661032956,-500.0,0.00018746,2]
[377999289,1754661032965,-419.64994957,0.00018746,2]
[377999291,1754661032975,-600.0,0.00018747,2]
[377999293,1754661032984,-430.05473421,0.00018747,2]
[377999295,1754661032994,-500.0,0.00018747,2]
[377999297,1754661033003,-600.0,0.00018747,2]
[377999299,1754661033013,-500.0,0.00018747,2]
[377999301,1754661033023,-600.0,0.00018747,2]
[377999303,1754661033033,-160.0,0.00018747,2]
[377999305,1754661033042,-600.0,0.00018747,2]
[377999307,1754661033052,-600.0,0.00018747,2]
[377999309,1754661033062,-151.0,0.00018747,2]
[377999311,1754661033072,-600.0,0.00018747,2]
[377999313,1754661033082,-151.0,0.00018747,2]
[377999315,1754661033093,-200.0,0.00018747,2]
[377999318,1754661033103,-151.0,0.00018747,2]
[377999320,1754661033113,-151.0,0.00018747,2]
[377999322,1754661033123,-600.0,0.00018747,2]
[377999324,1754661033133,-151.0,0.00018747,2]
[377999326,1754661033143,-600.0,0.00018747,2]
[377999328,1754661033153,-151.0,0.00018747,2]
[377999330,1754661033163,-151.0,0.00018747,2]
[377999332,1754661033173,-600.0,0.00018747,2]
[377999334,1754661033183,-151.0,0.00018747,2]
[377999336,1754661033193,-600.0,0.00018747,2]
[377999338,1754661033207,-151.0,0.00018747,2]
[377999340,1754661033217,-151.0,0.00018747,2]
[377999342,1754661033226,-600.0,0.00018747,2]
[377999344,1754661033236,-151.0,0.00018747,2]
[377999346,1754661033246,-600.0,0.00018747,2]
[377999348,1754661033256,-157.92435465,0.00018747,2]
[377999350,1754661033266,-151.0,0.00018747,2]
[377999352,1754661033275,-255.86758873,0.00018747,2]
[377999354,1754661033286,-500.0,0.00018747,2]
[377999356,1754661033295,-500.0,0.00018747,2]
[377999358,1754661033305,-500.0,0.00018747,2]
[377999360,1754661033315,-500.0,0.00018747,2]
[377999362,1754661033325,-500.0,0.00018747,2]
[377999364,1754661033336,-500.0,0.00018747,2]
[377999366,1754661033346,-500.0,0.00018747,2]
[377999368,1754661033356,-500.0,0.00018747,2]
[377999370,1754661033366,-500.0,0.00018747,2]
[377999373,1754661033375,-500.0,0.00018747,2]
[377999375,1754661033385,-500.0,0.00018747,2]
[377999377,1754661033395,-500.0,0.00018747,2]
[377999379,1754661033405,-500.0,0.00018747,2]
[377999381,1754661033415,-500.0,0.00018747,2]
[377999383,1754661033424,-500.0,0.00018747,2]
[377999385,1754661033434,-500.0,0.00018747,2]
[377999387,1754661033443,-500.0,0.00018747,2]
[377999389,1754661033457,-500.0,0.00018747,2]
[377999391,1754661033467,-500.0,0.00018747,2]
[377999393,1754661033477,-500.0,0.00018747,2]
[377999395,1754661033486,-513.99671889,0.00018747,2]
[377999397,1754661033496,-475.69,0.00018757,2]
[377999399,1754661033507,-400.0,0.00018757,2]
[377999401,1754661033516,-535.3417706,0.00018757,2]
[377999403,1754661033526,-400.0,0.00018757,2]
[377999405,1754661033536,-400.0,0.00018757,2]
[377999407,1754661033546,-400.0,0.00018757,2]
[377999409,1754661033561,-491.26,0.00018757,2]
[377999411,1754661033571,-400.0,0.00018757,2]
[377999413,1754661033581,-731.28,0.00018757,2]
[377999415,1754661033591,-400.0,0.00018757,2]
[377999418,1754661033602,-400.0,0.00018757,2]
[377999420,1754661033612,-400.0,0.00018757,2]
[377999422,1754661033622,-400.0,0.00018757,2]
[377999424,1754661033632,-400.0,0.00018757,2]
[377999426,1754661033643,-400.0,0.00018757,2]
[377999428,1754661033654,-400.0,0.00018757,2]
[377999430,1754661033664,-433.01,0.00018757,2]
[377999432,1754661033676,-400.0,0.00018757,2]
[377999434,1754661033686,-400.0,0.00018757,2]
[377999436,1754661033698,-400.0,0.00018757,2]
[377999438,1754661033708,-573.47,0.00018757,2]
[377999440,1754661033718,-1051.78,0.00018757,2]
[377999442,1754661033728,-443.82805151,0.00018757,2]
[377999444,1754661033738,-400.0,0.00018757,2]
[377999446,1754661033748,-400.0,0.00018757,2]
[377999448,1754661033759,-707.47,0.00018757,2]
[377999449,1754661033769,-400.0,0.00018757,2]
[377999451,1754661033779,-400.0,0.00018757,2]
[377999453,1754661033789,-400.0,0.00018757,2]
[377999455,1754661033799,-400.0,0.00018757,2]
[377999456,1754661033809,-624.78,0.00018757,2]
[377999457,1754661033819,-400.0,0.00018757,2]
[377999458,1754661033829,-557.41,0.00018757,2]
[377999459,1754661033839,-671.34,0.00018757,2]
[377999460,1754661033849,-400.0,0.00018757,2]
[377999461,1754661033859,-400.0,0.00018757,2]
[377999462,1754661033869,-400.0,0.00018757,2]
[377999463,1754661033879,-709.2,0.00018757,2]
[377999464,1754661033889,-400.0,0.00018757,2]
[377999465,1754661033899,-864.24,0.00018757,2]
[377999466,1754661033910,-468.32,0.00018757,2]
[377999467,1754661033920,-400.0,0.00018757,2]
[377999468,1754661033930,-400.0,0.00018757,2]
[377999469,1754661033940,-400.0,0.00018757,2]
[377999470,1754661033953,-400.0,0.00018757,2]
[377999471,1754661033963,-400.0,0.00018757,2]
[377999472,1754661033973,-400.0,0.00018757,2]
[377999473,1754661033987,-400.0,0.00018757,2]
[377999474,1754661034009,-400.0,0.00018757,2]
[377999475,1754661034026,-400.0,0.00018757,2]
[377999476,1754661034038,-449.63,0.00018757,2]
[377999477,1754661034050,-400.0,0.00018757,2]
[377999478,1754661034062,-471.99,0.00018757,2]
[377999479,1754661034072,-722.34,0.00018757,2]
[377999480,1754661034082,-459.59356135,0.00018757,2]
[377999481,1754661034094,-400.0,0.00018757,2]
[377999482,1754661034104,-400.0,0.00018757,2]
[377999483,1754661034114,-400.0,0.00018757,2]
[377999484,1754661034127,-400.0,0.00018757,2]
[377999485,1754661034138,-400.0,0.00018757,2]
[377999486,1754661034148,-400.0,0.00018757,2]
[377999487,1754661034159,-543.9,0.00018757,2]
[377999488,1754661034172,-900.62,0.00018757,2]
[377999489,1754661034182,-400.0,0.00018757,2]
[377999490,1754661034192,-400.0,0.00018757,2]
[377999491,1754661034206,-505.79,0.00018757,2]
[377999492,1754661034215,-400.0,0.00018757,2]
[377999493,1754661034226,-579.45,0.00018757,2]
[377999494,1754661034236,-400.0,0.00018757,2]
[377999495,1754661034246,-400.0,0.00018757,2]
[377999496,1754661034256,-606.65,0.00018757,2]
[377999497,1754661034265,-400.0,0.00018757,2]
[377999498,1754661034276,-400.0,0.00018757,2]
[377999499,1754661034287,-953.28,0.00018757,2]
[377999500,1754661034301,-400.0,0.00018757,2]
[377999501,1754661034311,-569.98,0.00018757,2]
[377999502,1754661034322,-400.0,0.00018757,2]
[377999503,1754661034333,-400.0,0.00018757,2]
[377999504,1754661034342,-233.1271891,0.00018757,2]
[377999505,1754661034352,-400.0,0.00018757,2]
[377999506,1754661034363,-400.0,0.00018757,2]
[377999507,1754661034373,-718.77,0.00018757,2]
[377999508,1754661034383,-400.0,0.00018757,2]
[377999509,1754661034392,-400.0,0.00018757,2]
[377999510,1754661034405,-449.47,0.00018757,2]
[377999511,1754661034415,-400.0,0.00018757,2]
[377999512,1754661034424,-400.0,0.00018757,2]
[377999513,1754661034434,-550.24,0.00018757,2]
[377999514,1754661034444,-400.0,0.00018757,2]
[377999515,1754661034455,-1101.67,0.00018757,2]
[377999516,1754661034465,-400.0,0.00018757,2]
[377999517,1754661034476,-400.0,0.00018757,2]
[377999518,1754661034487,-400.0,0.00018757,2]
[377999519,1754661034497,-859.34,0.00018757,2]
[377999520,1754661034507,-436.73,0.00018757,2]
[377999521,1754661034518,-400.0,0.00018757,2]
[377999522,1754661034527,-400.0,0.00018757,2]
[377999523,1754661034537,-400.0,0.00018757,2]
[377999524,1754661034547,-400.0,0.00018757,2]
[377999525,1754661034559,-462.61,0.00018757,2]
[377999526,1754661034570,-563.76,0.00018757,2]
[377999527,1754661034581,-422.36,0.00018757,2]
[377999528,1754661034591,-221.87767764,0.00018757,2]
[377999529,1754661034601,-400.0,0.00018757,2]
[377999530,1754661034611,-400.0,0.00018757,2]
[377999531,1754661034621,-780.65,0.00018757,2]
[377999532,1754661034631,-807.38,0.00018757,2]
[377999533,1754661034641,-400.0,0.00018757,2]
[377999534,1754661034652,-400.0,0.00018757,2]
[377999535,1754661034662,-402.59,0.00018757,2]
[377999536,1754661034672,-400.0,0.00018757,2]
[377999537,1754661034683,-1463.82,0.00018757,2]
[377999538,1754661034692,-428.82,0.00018757,2]
[377999539,1754661034706,-842.57,0.00018757,2]
[377999540,1754661034717,-400.0,0.00018757,2]
[377999541,1754661034727,-640.65,0.00018757,2]
[377999542,1754661034737,-400.0,0.00018757,2]
[377999543,1754661034747,-400.0,0.00018757,2]
[377999544,1754661034757,-727.94,0.00018757,2]
[377999545,1754661034768,-678.96,0.00018757,2]
[377999546,1754661034777,-883.77,0.00018757,2]
[377999547,1754661034787,-400.0,0.00018757,2]
[377999548,1754661034803,-754.47,0.00018757,2]
[377999549,1754661034814,-407.34325613,0.00018757,2]
[377999550,1754661034825,-400.0,0.00018757,2]
[377999551,1754661034836,-400.0,0.00018757,2]
[377999552,1754661034846,-5591.31319997,0.00018758,2]
[377999553,1754661034857,-400.0,0.00018758,2]
[377999554,1754661034868,-400.0,0.00018758,2]
[377999555,1754661034879,-420.26,0.00018758,2]
[377999556,1754661034889,-400.0,0.00018758,2]
[377999557,1754661034899,-486.27,0.00018758,2]
[377999558,1754661034910,-406.95,0.00018758,2]
[377999559,1754661034921,-400.0,0.00018758,2]
[377999560,1754661034931,-450.0,0.00018758,2]
[377999561,1754661034942,-400.0,0.00018758,2]
[377999562,1754661034955,-400.0,0.00018758,2]
[377999563,1754661034966,-457.13,0.00018758,2]
[377999564,1754661034976,-400.0,0.00018758,2]
[377999565,1754661034987,-400.0,0.00018758,2]
[377999566,1754661035000,-511.57,0.00018758,2]
[377999567,1754661035010,-400.0,0.00018758,2]
[377999568,1754661035020,-400.0,0.00018758,2]
[377999569,1754661035031,-400.0,0.00018758,2]
[377999570,1754661035042,-487.51,0.00018758,2]
[377999571,1754661035053,-400.0,0.00018758,2]
[377999572,1754661035063,-504.73,0.00018758,2]
[377999573,1754661035073,-400.0,0.00018758,2]
[377999574,1754661035084,-400.0,0.00018758,2]
[377999575,1754661035094,-400.0,0.00018758,2]
[377999576,1754661035104,-400.0,0.00018758,2]
[377999577,1754661035115,-400.0,0.00018758,2]
[377999578,1754661035125,-400.0,0.00018758,2]
[377999579,1754661035135,-400.0,0.00018758,2]
[377999580,1754661035145,-400.0,0.00018758,2]
[377999581,1754661035473,-400.0,0.00018758,2]
[377999582,1754661035484,-400.0,0.00018758,2]
[377999583,1754661035493,-400.0,0.00018758,2]
[377999584,1754661035503,-400.0,0.00018758,2]
[377999585,1754661035513,-415.19508459,0.00018758,2]
[377999586,1754661035522,-573.81,0.00018758,2]
[377999587,1754661035532,-400.0,0.00018758,2]
[377999588,1754661035541,-400.0,0.00018758,2]
[377999589,1754661035552,-400.0,0.00018758,2]
[377999590,1754661035564,-400.0,0.00018758,2]
[377999591,1754661035578,-400.0,0.00018758,2]
[377999592,1754661035587,-400.0,0.00018758,2]
[377999593,1754661035600,-400.0,0.00018758,2]
[377999594,1754661035609,-400.0,0.00018758,2]
[377999595,1754661035618,-400.0,0.00018758,2]
[377999596,1754661035628,-400.0,0.00018758,2]
[377999597,1754661035637,-558.73,0.00018758,2]
[377999598,1754661035647,-400.0,0.00018758,2]
[377999599,1754661035657,-541.84,0.00018758,2]
[377999600,1754661035667,-400.0,0.00018758,2]
[377999601,1754661035676,-441.47,0.00018758,2]
[377999602,1754661035686,-400.0,0.00018758,2]
[377999603,1754661035698,-400.0,0.00018758,2]
[377999604,1754661035707,-400.0,0.00018758,2]
[377999605,1754661035717,-400.0,0.00018758,2]
[377999606,1754661035726,-400.0,0.00018758,2]
[377999607,1754661035736,-400.0,0.00018758,2]
[377999608,1754661035745,-400.0,0.00018758,2]
[377999609,1754661035755,-400.0,0.00018758,2]
[377999610,1754661035765,-515.26,0.00018758,2]
[377999611,1754661035775,-649.08,0.00018758,2]
[377999612,1754661035784,-574.37,0.00018758,2]
[377999613,1754661035794,-400.0,0.00018758,2]
[377999614,1754661035804,-400.0,0.00018758,2]
[377999615,1754661035813,-400.0,0.00018758,2]
[377999616,1754661035823,-400.0,0.00018758,2]
[377999617,1754661035832,-400.0,0.00018758,2]
[377999618,1754661035842,-672.21,0.00018758,2]
[377999619,1754661035851,-400.0,0.00018758,2]
[377999620,1754661035861,-400.0,0.00018758,2]
[377999621,1754661035870,-400.0,0.00018758,2]
[377999622,1754661035880,-400.0,0.00018758,2]
[377999623,1754661035890,-400.0,0.00018758,2]
[377999624,1754661035899,-558.97,0.00018758,2]
[377999625,1754661035909,-400.0,0.00018758,2]
[377999626,1754661035919,-400.0,0.00018758,2]
[377999627,1754661035929,-480.94,0.00018758,2]
[377999628,1754661035938,-400.0,0.00018758,2]
[377999629,1754661035950,-464.91,0.00018758,2]
[377999630,1754661035960,-400.0,0.00018758,2]
[377999631,1754661035970,-400.0,0.00018758,2]
[377999632,1754661035980,-402.28,0.00018758,2]
[377999633,1754661035990,-419.8,0.00018758,2]
[377999634,1754661036000,-400.0,0.00018758,2]
[377999635,1754661036009,-400.0,0.00018758,2]
[377999636,1754661036019,-677.72,0.00018758,2]
[377999637,1754661036029,-437.91,0.00018758,2]
[377999638,1754661036038,-696.15,0.00018758,2]
[377999639,1754661036047,-400.0,0.00018758,2]
[377999640,1754661036056,-478.9,0.00018758,2]
[377999641,1754661036066,-400.0,0.00018758,2]
[377999642,1754661036075,-400.0,0.00018758,2]
[377999643,1754661036085,-400.0,0.00018758,2]
[377999644,1754661036094,-400.0,0.00018758,2]
[377999645,1754661036104,-474.15,0.00018758,2]
[377999646,1754661036113,-589.84,0.00018758,2]
[377999647,1754661036123,-526.85,0.00018758,2]
[377999648,1754661036132,-400.0,0.00018758,2]
[377999649,1754661036142,-400.0,0.00018758,2]
[377999650,1754661036152,-400.0,0.00018758,2]
[377999651,1754661036161,-451.25,0.00018758,2]
[377999652,1754661036171,-400.0,0.00018758,2]
[377999653,1754661036180,-558.59,0.00018758,2]
[377999654,1754661036190,-400.0,0.00018758,2]
[377999655,1754661036202,-400.0,0.00018758,2]
[377999656,1754661036213,-446.05,0.00018758,2]
[377999657,1754661036222,-425.55,0.00018758,2]
[377999658,1754661036232,-485.67,0.00018758,2]
[377999659,1754661036241,-400.0,0.00018758,2]
[377999660,1754661036251,-534.16,0.00018758,2]
[377999661,1754661036260,-400.0,0.00018758,2]
[377999662,1754661036270,-400.0,0.00018758,2]
[377999663,1754661036280,-651.09,0.00018758,2]
[377999664,1754661036289,-546.52,0.00018758,2]
[377999665,1754661036300,-452.01,0.00018758,2]
[377999666,1754661036309,-857.09,0.00018758,2]
[377999667,1754661036318,-400.0,0.00018758,2]
[377999668,1754661036327,-677.0,0.00018758,2]
[377999669,1754661036337,-464.33,0.00018758,2]
[377999670,1754661036347,-431.85,0.00018758,2]
[377999671,1754661036357,-400.0,0.00018758,2]
[377999672,1754661036367,-400.0,0.00018758,2]
[377999673,1754661036377,-803.83,0.00018758,2]
[377999674,1754661036386,-506.94,0.00018758,2]
[377999675,1754661036396,-566.61,0.00018758,2]
[377999676,1754661036406,-400.0,0.00018758,2]
[377999677,1754661036415,-585.88,0.00018758,2]